Cogmind - Beta 16 @@@ ROGUE MODE // 2026.02.03 @ 23:23:54 Player: throbalt Result: Destroyed by D-53 Grenadier with Mini Grenade Launcher Performance ------------- Evolutions (3) 1500 Regions Visited (4) 800 Robots Destroyed (41) 205 Value Destroyed (1279) 1279 Prototype IDs (2) 40 Alien Tech Used (0) 0 Bonus (0) 0 TOTAL SCORE: 3824 Bonus ------- None Cogmind --------- Core Integrity 0/700 Matter 219/300 Energy 100/100 System Corruption 23% Temperature Cool (0) Movement Core (50) Location -7/Factory Parts ------- > --- POWER (2) -------- (None) > --- PROPULSION (4) --- (None) > --- UTILITY (3) ------ (None) > --- WEAPON (4) ------- (None) > --- INVENTORY (5) ---- Carbon-fiber Leg Improved Terrain Scan Processor Datajack Peak State ------------ > --- POWER ------------ Improved Ion Engine Improved Ion Engine > --- PROPULSION ------- Aluminum Leg Aluminum Leg Aluminum Leg Titanium Leg > --- UTILITY ---------- Large Storage Unit Structural Scanner Hacking Suite > --- WEAPON ----------- Shock Rifle Pulse Rifle Minigun Minigun > --- INVENTORY -------- Light Angular Momentum Engine Carbon-fiber Leg Carbon-fiber Leg Visual Processing Unit Improved Terrain Scan Processor Arc Projector Heavy Laser Minigun High-powered Shotgun Heavy Assault Cannon Datajack Axe [Rating: 31] Favorites ----------- Power Improved Ion Engine Engine Improved Ion Engine Power Core Light Nuclear Core Propulsion Aluminum Leg Leg Aluminum Leg Wheel Compact Wheel Utility Structural Scanner Device Structural Scanner Storage Medium Storage Unit Processor Visual Processing Unit Hackware Hacking Suite Weapon Minigun Energy Gun Shock Rifle Ballistic Gun Minigun Ballistic Cannon Heavy Assault Cannon Launcher Mini Grenade Launcher Slashing Weapon Axe Special Melee Weapon Datajack Build | -11 -10 -9 -8 -7 ------- Run | Yrd Mat Mat Mat Fac Slots Evolved 6 | . . 2 2 2 Power 1 | . . . . 1 Propulsion 2 | . . 1 1 . Utility 1 | . . . 1 . Weapon 2 | . . 1 . 1 Parts Attached 45 | 6 5 12 12 10 Power 10 | 1 2 2 3 2 Engine 8 | 1 1 2 2 2 Core 2 | . 1 . 1 . Reactor . | . . . . . Propulsion 10 | 2 . 4 3 1 Treads . | . . . . . Leg 8 | . . 4 3 1 Wheel 2 | 2 . . . . Hover . | . . . . . Flight . | . . . . . Utility 8 | 1 2 1 3 1 Device 1 | . 1 . . . Storage 5 | 1 1 1 2 . Processor 1 | . . . . 1 Hackware 1 | . . . 1 . Protection . | . . . . . Artifact . | . . . . . Weapon 17 | 2 1 5 3 6 Energy Gun 4 | . . . 1 3 Energy Cannon . | . . . . . Ballistic Gun 9 | 2 1 4 1 1 Ballistic Cannon 1 | . . . . 1 Launcher 1 | . . . 1 . Special Weapon . | . . . . . Impact Weapon . | . . . . . Slashing Weapon 1 | . . . . 1 Piercing Weapon . | . . . . . Special Melee Weapon 1 | . . 1 . . Unidentified Prototypes . | . . . . . Parts Lost 27 | . . 2 4 21 Power 5 | . . 1 1 3 Propulsion 7 | . . 1 1 5 Utility 4 | . . . 1 3 Weapon 11 | . . . 1 10 Highest Loss Streak 21 | . . 2 3 21 To Critical Strikes . | . . . . . Average Backups 9 | 2 7 9 9 10 Power 1 | . 1 1 1 . Propulsion 1 | 1 2 1 1 1 Utility 1 | . 1 1 . 1 Weapon 4 | . 1 4 5 5 Tool/Special . | . . . . . Unused Backups 17 | . 3 5 7 2 Power 1 | . . . 1 . Propulsion 3 | . 1 1 . 1 Utility 7 | . 1 3 2 1 Weapon 6 | . 1 1 4 . Tool/Special . | . . . . . Average Slot Usage (%) 95 | . 98 90 98 89 Engine 6 | . 7 2 7 13 Core 4 | . 6 8 1 . Leg 20 | . . 7 35 25 Wheel 9 | . 28 16 . . Device 9 | . 12 11 9 5 Storage 12 | . 14 11 13 7 Hackware 2 | . . . 4 5 Energy Gun 4 | . . . 7 12 Ballistic Gun 24 | . 28 31 18 13 Peak Build Rating 31 | 6 10 16 26 31 Average Rating 17 | 4 8 12 22 27 On Entrance 11 | . 6 10 16 25 Avg Prop Armor Cover (%) . | . . . . . Naked Turns 6 | . . . . 6 Heaviest Build 47 | 11 20 27 37 47 Greatest Support 47 | 32 32 32 47 47 Greatest Overweight (x) 2 | . . 2 . . Average Overweight (x) . | . . . . . Largest Inventory Capacity 15 | 8 10 10 15 15 Average Capacity 10 | 7 8 10 11 14 Most Carried 14 | 4 10 10 14 13 Average Carried 9 | 2 7 9 10 11 Final Capacity 15 | 8 10 10 15 5 Final Carried 13 | 4 10 10 13 3 Class Distribution -------------------- 48% | Scavenger-Skirmisher 28% | Skirmisher 22% | Mutant Dominant Class ---------------- Mutant | -10/Materials Skirmisher | -9/Materials Scavenger-Skirmisher | -8/Materials Scavenger-Skirmisher | -7/Factory Resources | -11 -10 -9 -8 -7 ----------- Run | Yrd Mat Mat Mat Fac Matter Collected 1251 | 249 112 453 421 16 Remotely . | . . . . . Salvage Created 1612 | . 112 609 768 123 Parts 110 | . 10 46 49 5 Haulers Intercepted . | . . . . . Recyclers Shooed . | . . . . . Parts Field Recycled . | . . . . . Retrieved Matter . | . . . . . Parts Self-Destructed . | . . . . . Prevented . | . . . . . Parts Restored . | . . . . . Kills | -11 -10 -9 -8 -7 ------- Run | Yrd Mat Mat Mat Fac Combat Hostiles Destroyed 40 | . 2 17 17 4 Guns 40 | . 2 17 17 4 Classes Destroyed 8 | . 2 3 2 1 Worker 1 | . . 1 . . Operator 1 | . . . 1 . Watcher 3 | . 1 2 . . Swarmer 11 | . . 7 4 . Grunt 17 | . 2 8 7 . Sentry 7 | . . 2 5 . Hunter 1 | . . . 1 . Assembled 4 | . . . . 4 Best Kill Streak 5 | . 1 5 5 4 Combat Bots Only 5 | . 1 5 5 4 Max Kills in Single Turn 2 | . 1 2 2 1 Gunslinging 1 | . . 1 . . Exploded . | . . . . . Melee . | . . . . . Uniques/NPCs Destroyed . | . . . . . Combat | -11 -10 -9 -8 -7 -------- Run | Yrd Mat Mat Mat Fac Hostile Shots Fired 285 | . 17 48 86 134 Missed 72 | . 8 18 28 18 Hits 213 | . 9 30 58 116 Melee 30 | . . . . 30 Projectile 183 | . 9 30 58 86 AOE 10 | . . . . 10 Critical Strikes 6 | . . . 3 3 Part Disruptions 2 | . . . . 2 Damage Taken 3558 | . 108 303 821 2326 Core 891 | . 33 39 69 750 Absorbed by Shields . | . . . . . Regen/Repaired (Parts) 64 | . . . 64 . Core Remaining (%) 90 | 100 86 90 87 . Volleys Fired 101 | . 16 36 39 10 Largest 4 | . 2 3 3 4 Hottest 182 | . 40 73 105 182 Shots Fired 269 | . 32 93 114 30 Gun 267 | . 32 93 113 29 Cannon 1 | . . . . 1 Launcher 1 | . . . 1 . Special . | . . . . . Kinetic 225 | . 32 93 82 18 Thermal 10 | . . . . 10 Explosive 1 | . . . 1 . Electromagnetic 33 | . . . 31 2 Robot Hit Streak 11 | . 6 9 11 11 Robot Miss Streak 5 | . 3 5 4 4 Penetration Max . | . . . . . Secondary Targets 6 | . . 2 1 3 Max Gunslinging Chain 1 | . . 1 1 1 Shots Hit Robots 168 | . 18 61 69 20 Core Hits 90 | . 7 33 36 14 Critical Kills 1 | . . 1 . . Critical Parts Destroyed . | . . . . . Critical Strikes 3 | . . 1 2 . Destroy 1 | . . 1 . . Corrupt 2 | . . . 2 . Melee Attacks 7 | . . 1 4 2 Impact . | . . . . . Slashing 2 | . . . . 2 Piercing . | . . . . . Sneak Attacks 1 | . . . 1 . Combat Hostiles . | . . . . . Follow-up Attacks . | . . . . . Damage Inflicted 2782 | . 211 827 1153 591 Guns 2691 | . 208 827 1146 510 Cannons . | . . . . . Explosions . | . . . . . Melee 80 | . . . . 80 Ramming 11 | . 3 . 7 1 Kinetic 2234 | . 208 827 847 352 Thermal 158 | . . . . 158 Explosive . | . . . . . Electromagnetic 299 | . . . 299 . Impact . | . . . . . Slashing 80 | . . . . 80 Piercing . | . . . . . Highest Corruption 23 | . . . 3 23 Average Corruption 12 | . . . 2 18 Corruption Purged . | . . . . . Corruption Blocked . | . . . . . Effects 4 | . . . 1 3 Message Errors 2 | . . . 1 1 Data Loss (minor) 1 | . . . . 1 Weapon Failures 1 | . . . . 1 Overload Shots . | . . . . . Overflow Damage . | . . . . . Projectiles . | . . . . . Explosions . | . . . . . Melee . | . . . . . Knockbacks . | . . . . . Impact . | . . . . . Kinetic . | . . . . . Secondary . | . . . . . Self-Inflicted Damage 1 | . 1 . . . Shots . | . . . . . Rammed 2 | . 1 . . 1 Targets Rammed 4 | . 1 . 2 1 Kicked 2 | . . . 2 . Crushed . | . . . . . Highest Temperature 536 | . 6 26 248 536 Average Temperature 114 | . 4 10 80 302 Received Heat Transfer 867 | . 63 105 279 420 Effects 9 | . . . 2 7 Shutdowns 1 | . . . . 1 Energy Bleed 1 | . . . . 1 Interference 4 | . . . 2 2 Short Circuit 1 | . . . . 1 Damage (major) 2 | . . . . 2 Siege Activations . | . . . . . Martial Activations . | . . . . . Shielding Activations . | . . . . . Robots Disrupted . | . . . . . Combat Hostiles . | . . . . . Robots Corrupted . | . . . . . Combat Hostiles . | . . . . . Parts Fried . | . . . . . Impact Corruptions . | . . . . . Robots Melted . | . . . . . Combat Hostiles . | . . . . . Parts Melted . | . . . . . Heat Transferred 333 | . . . . 333 Parts Sabotaged . | . . . . . Parts Stolen . | . . . . . Parts Stripped . | . . . . . Power Chain Reactions . | . . . . . Alert | -11 -10 -9 -8 -7 ------- Run | Yrd Mat Mat Mat Fac Maximum Alert Level 1 | . . 1 . . Low Security (%) 98 | 100 100 96 100 100 Level 1 1 | . . 3 . . Level 2 . | . . . . . Level 3 . | . . . . . Level 4 . | . . . . . Level 5 . | . . . . . High Security . | . . . . . Max Security . | . . . . . Peak Influence 208 | . 47 208 172 65 Initial 65 | . . . 18 65 Average 52 | . 9 71 59 24 Influence Increases 1069 | . 99 439 515 16 Destroy 0b10 Robot/C 720 | . 40 340 340 . Destroy 0b10 Robot/NC 40 | . 5 15 5 15 Destroy Leader 186 | . 22 74 90 . Successful Hack 39 | . 2 10 27 . Disable Machine 30 | . . . 30 . Destroy Structure 9 | . . . 8 1 Lose Combat Pursuer 45 | . 30 . 15 . Influence Decreases 1069 | . 99 394 415 161 Entered New Map 107 | . . . 27 80 Time Decay 736 | . 99 224 348 65 Lost Part 76 | . . 20 40 16 Purge Threat 150 | . . 150 . . Squads Dispatched 7 | . 1 2 4 . Investigation 2 | . . 1 1 . Extermination . | . . . . . Reinforcement 2 | . 1 1 . . Assault . | . . . . . Garrison 3 | . . . 3 . Intercept . | . . . . . Searches Triggered . | . . . . . Construction Impeded . | . . . . . Haulers Reinforced . | . . . . . Active Scanning Responses . | . . . . . Cargo Convoy Interrupts . | . . . . . Stealth | -11 -10 -9 -8 -7 --------- Run | Yrd Mat Mat Mat Fac Distress Signals 4 | . 1 . 2 1 Communications Jammed . | . . . . . Distress Signals . | . . . . . Times Spotted 71 | . 8 23 22 18 Peak Tracking Total 12 | . 4 4 7 12 Tactical Retreats 3 | . 2 . 1 . Traps | -11 -10 -9 -8 -7 ------- Run | Yrd Mat Mat Mat Fac Traps Triggered 5 | . . 1 3 1 Indirectly . | . . . . . Trap Hack Attempts . | . . . . . Triggered . | . . . . . Disarmed . | . . . . . Reprogrammed . | . . . . . Reused . | . . . . . Traps Extracted . | . . . . . Installed . | . . . . . Triggered . | . . . . . Machines | -11 -10 -9 -8 -7 ---------- Run | Yrd Mat Mat Mat Fac Machines Disabled 2 | . . . 2 . Max in Single Turn 1 | . . . 1 . Machines Repaired . | . . . . . Machines Dismantled . | . . . . . Machines Sabotaged . | . . . . . Overloaded Fab Kills . | . . . . . Hacking | -11 -10 -9 -8 -7 --------- Run | Yrd Mat Mat Mat Fac Machines Accessed 18 | . 4 5 9 . Terminals 12 | . 2 4 6 . Fabricators . | . . . . . Repair Stations 2 | . 1 . 1 . Recycling Units 1 | . 1 . . . Scanalyzers 3 | . . 1 2 . Garrison Access . | . . . . . Total Hacks 53 | . 11 18 24 . Successful 30 | . 4 10 16 . Failed 22 | . 7 7 8 . Catastrophic 4 | . 1 3 . . Database Lockouts 1 | . . 1 . . Manual 9 | . 2 6 1 . Terminals 31 | . 6 11 14 . Fabricators . | . . . . . Repair Stations 5 | . 2 . 3 . Recycling Units 3 | . 3 . . . Scanalyzers 14 | . . 7 7 . Garrison Access . | . . . . . Terminal Hacks 13 | . 3 4 6 . Prototype ID Bank 1 | . . 1 . . Alert Level 2 | . 1 1 . . Unreport Threat 2 | . 1 1 . . Locate Traps 2 | . 1 . 1 . Dispatch Records 1 | . . 1 . . Maintenance Status 1 | . . . 1 . Security Status 1 | . . . 1 . Recall Reinforcements 1 | . . . 1 . Zone Layout 2 | . . . 2 . Fabricator Hacks . | . . . . . Repair Station Hacks 4 | . 1 . 3 . Scan Component 3 | . 1 . 2 . Repair 1 | . . . 1 . Recycling Unit Hacks . | . . . . . Scanalyzer 13 | . . 6 7 . Insert Component 5 | . . 2 3 . Analyze 4 | . . 2 2 . Retrieve Study 4 | . . 2 2 . Garrison Access Hacks . | . . . . . Unauthorized Hacks . | . . . . . Terminals . | . . . . . Fabricators . | . . . . . Repair Stations . | . . . . . Recycling Units . | . . . . . Scanalyzers . | . . . . . Garrison Access . | . . . . . Data Cores Recovered . | . . . . . Used . | . . . . . Hacking Detections 14 | . 4 4 6 . Full Trace Events 1 | . . . 1 . Feedback Events . | . . . . . Feedback Blocked . | . . . . . Robot Schematics Acquired . | . . . . . Robots Built . | . . . . . Authchips . | . . . . . Time . | . . . . . Total Robot Build Rating . | . . . . . Part Schematics Acquired 4 | . . 2 2 . Parts Built . | . . . . . Authchips . | . . . . . Time . | . . . . . Total Part Build Rating . | . . . . . Part Studies Acquired 3 | . . 1 2 . Parts Repaired 1 | . . . 1 . Time 26 | . . . 26 . Parts Recycled . | . . . . . Recycled Matter . | . . . . . Retrieved Matter . | . . . . . Retrieved Components . | . . . . . Parts Scanalyzed 4 | . . 2 2 . Part Schematics Acquired 4 | . . 2 2 . Parts Damaged 1 | . . . 1 . Bothacking | -11 -10 -9 -8 -7 ------------ Run | Yrd Mat Mat Mat Fac Used RIF Installer . | . . . . . Robots Hacked 3 | . . 1 2 . Non-combat 1 | . . . 1 . Combat 2 | . . 1 1 . Robot Hacks Applied 3 | . . 1 2 . parse_system 3 | . . 1 2 . Relay Couplers Released . | . . . . . Fabnet Peak Effective % . | . . . . . Robots Rewired . | . . . . . Allies Hacked . | . . . . . Hacks Repelled . | . . . . . Allies | -11 -10 -9 -8 -7 -------- Run | Yrd Mat Mat Mat Fac Total Allies . | . . . . . Largest Group . | . . . . . Highest-Rated Group . | . . . . . Highest-Rated Ally . | . . . . . Total Orders . | . . . . . Ally Attacks . | . . . . . Total Damage . | . . . . . Kills . | . . . . . Allies Corrupted . | . . . . . Allies Melted . | . . . . . Intel | -11 -10 -9 -8 -7 ------- Run | Yrd Mat Mat Mat Fac Active Infowar (turns) 2480 | . 357 850 1090 183 Optics 18 | . . . . 18 Structural 2462 | . 357 850 1090 165 Robot Analysis Total . | . . . . . Derelict Logs Recovered . | . . . . . Drone Launches . | . . . . . Drone Recoveries . | . . . . . Exploration | -11 -10 -9 -8 -7 ------------- Run | Yrd Mat Mat Mat Fac Turns Passed 2628 | 71 385 850 1122 200 Spaces Moved 1591 | 61 307 356 744 123 Core 4 | 4 . . . . Treads . | . . . . . Legs 999 | . . 132 744 123 Wheels 588 | 57 307 224 . . Hover . | . . . . . Flight . | . . . . . Fastest Speed 50 | 50 100 100 105 111 Average Speed 106 | 96 100 108 109 111 Slowest Speed 260 | 100 100 260 111 111 Overloaded Moves . | . . . . . Propulsion Burnouts . | . . . . . Robots Hopped . | . . . . . Potential Cave-ins . | . . . . . Cave-ins Triggered . | . . . . . Exploration Rate (%) 27 | 4 41 35 50 5 Regions Visited 4 Branch Regions . Pre-discovered Areas . | . . . . . Known Exits Taken . | . . . . . Unknown Exits Taken 4 | 1 1 1 1 . Scrap Searched . | . . . . . Spaces Dug 9 | . . . 9 . Terrain Destroyed 10 | . . . 9 1 Melee . | . . . . . Projectile 1 | . . . . 1 AOE 9 | . . . 9 . Terrain Rammed . | . . . . . Walls Destroyed . | . . . . . Machines Disabled . | . . . . . Actions | -11 -10 -9 -8 -7 --------- Run | Yrd Mat Mat Mat Fac Total 2331 | 70 357 755 988 161 Wait 475 | . 16 315 138 6 Move 1587 | 60 306 355 743 123 Hop . | . . . . . Pick Up 49 | 4 8 15 20 2 Fast Attach 11 | 6 1 2 2 . Attach 35 | . 1 8 13 13 Detach 8 | . 1 1 4 2 Swap 13 | . 3 5 5 . Drop 39 | . 4 17 18 . Fire 101 | . 16 36 39 10 Melee 7 | . . 1 4 2 Ram 2 | . 1 . . 1 Kick 2 | . . . 2 . Crush . | . . . . . Escape Stasis . | . . . . . Rewire 2 | . . . . 2 Trap . | . . . . . Miscellaneous . | . . . . . Route ------- -11/Scrapyard -10/Materials (discovered 2 exits: *Mat / [Sub]) -9/Materials -8/Materials -7/Factory History --------- Turn | Location | Event 15 | -11/Scrapyard | Discovered new exit (range 16) 72 | -11/Scrapyard | Entered Materials 101 | -10/Materials | Discovered new exit (range 6) 300 | -10/Materials | Build established: Mutant 376 | -10/Materials | Discovered new exit (range 12) 457 | -10/Materials | Entered another Materials area 457 | -9/Materials | Evolved 2 slots: Propulsion x1, Weapon x1 770 | -9/Materials | Build established: Skirmisher 1241 | -9/Materials | Discovered new exit (range 8) 1298 | -9/Materials | Central database locked down 1307 | -9/Materials | Entered another Materials area 1307 | -8/Materials | Evolved 2 slots: Propulsion x1, Utility x1 1539 | -8/Materials | Discovered new exit (range 15) 1578 | -8/Materials | Build established: Scavenger-Skirmisher 1885 | -8/Materials | Garrison activated, responded to threat 1922 | -8/Materials | Lost 3 parts (1p1n1u) 2266 | -8/Materials | Repaired Aluminum Leg+ 2429 | -8/Materials | Entered Factory 2429 | -7/Factory | Evolved 2 slots: Power x1, Weapon x1 2570 | -7/Factory | Assembled infested ambush trap array 2583 | -7/Factory | System corruption reached 10% 2624 | -7/Factory | Core integrity fell below 50% 2628 | -7/Factory | Core integrity fell below 20% 2629 | -7/Factory | Destroyed by D-53 Grenadier with Mini Grenade Launcher Last Messages --------------- as-96271 destroyed. Matter Pump disabled. Acquired 16 matter. as-61304 destroyed. as-01276 destroyed. as-50229 destroyed. as-33955 destroyed. as-05868 destroyed. as-48161 destroyed. as-72739 destroyed. Lrg. Storage Unit destroyed. Axe destroyed. as-83654 destroyed. Visual Processing Unit severed. as-74469 destroyed. Nuclear Reactor explodes. GEL1JHJH,9SMOT6A1FS7OU006T Map ----- +----------------------------------------------------+ | #### # ???????????????????? | | #### # ???????????????????? | | #### ###########???????????????????? | | #+########## # ???????????????????? | | # ! ?????????????????????????? | | + ""?????? # ???????????????? | | # """"???? # ???????????????? | | # """""?? # ???????????????? | | # """"""" # ???????????????? | | ################## # ???????????????? | | ######### """"""" # ???????????????? | | " """ ##?????## """"""" # ???????????????? | | " """ ######### """"""" ##???????????????? | | " """ ######### """"""" ##???????????????? | | + + + ???????????????? | | """ #################+#####???? ?? ##??? | | """ #################%###### u ##??? | | """ ##?????????????## ###### ##??? | | ##?????????????## ##??? | | ##?????????????## ##??? | | ##???????????#### """ """ ##??? | | ##??????????## " """ ??? | | ###+#######?????????## dd """ ???? | | ### #######?????????# ?????? | | ????????????????????# ??????? | | ????????????????????# @ ??????? | | ?????????????????# ! ??????? | | ???????????? ??????? | | ??????????? ###### ???????? | | ?????????????????##+## ???????? | | ???????????????????? # ????????? | | ???????????????????? # ????????? | | ???????????????????? # ????????? | | ???????????????????? # ?????????? | | ???????????????????? # ?????????? | | ???????????????????? # m ??????????? | | ???????????????????? # """ ??????????? | | ???????????????????? # """ a ????????????? | | ???????????????????? # "??? ??????????????? | | ????????????????????## ??????????????????? | | ???????????????????? "??????????????????? | | ????????????????????? "??????????????????? | | ??????????????????????"" ???????????????????? | | ???????????????????????????????????????????????? | | ???????????????????????????????????????????????? | | ???????????????????????????????????????????????? | | ???????????????????????????????????????????????? | | ???????????????????????????????????????????????? | | ???????????????????????????????????????????????? | | ???????????????????????????????????????????????? | +----------------------------------------------------+ Best States ------------- Heat Dissipation 34 Energy Generation 19 Energy Capacity 430 Matter Stores 393 Matter Capacity 400 Sight Range 18 Terrain Scan Density 10 Evasion (%) 55 Offensive Hacking 10 Item Schematics ----------------- Aluminum Leg | -9/Materials | Scanalyzed Minigun | -9/Materials | Scanalyzed Carbon-fiber Leg | -8/Materials | Scanalyzed Imp. Terrain Scan Processor | -8/Materials | Scanalyzed Robot Schematics ------------------ None Fabricated ------------ Nothing Repaired ---------- Aluminum Leg | 28% | -8/Materials Studied --------- Aluminum Leg | -9/Materials | Hacked Minigun | -8/Materials | Hacked Carbon-fiber Leg | -8/Materials | Hacked Alien Tech Used ----------------- None Achievements -------------- None Challenges ------------ None Game ------ Seed ThrowingNavigationMeganuke Manual? 0 Play Time 00:51:44 Cumulative 10.5 hours Start 2026.02.02 @ 21:22:48 End 2026.02.03 @ 23:23:54 Sessions 2 Manual Loads 0 Difficulty Rogue Special Mode None Game No. 14 Rogue 12 Adventurer 0 Explorer 2 Win Type - Total 0 Types 0/0/0/0/0/0/0/0/0/0 Lore% 4 Gallery% 13 Achievement% 10 Wizard Run 0 Options --------- Layout 1 ASCII 0 Keyboard 1 Movement Vi Keybinds 0 Fullscreen 1 Font 24/Smallcaps Map View 50x35 Zoom Use 0% Tactical HUD 0 Map Filters NONE Filters NONE Steam 1 RUN: 2996b2d7-4f8f-4fd6-9254-2e949de2096c